[Event "*** Titled Tuesday 3|2 Blitz"]
[Site "Chess.com"]
[Date "2015.03.03"]
[Round "7"]
[White "HansCoolNiemann"]
[Black "bsmail"]
[Result "1-0"]
[WhiteElo "1834"]
[BlackElo "2036"]
[TimeControl "180+2"]
[EndTime "12:27:22 PST"]
[Termination "HansCoolNiemann won by resignation"]

1. d4 {[%clk 0:03:00]} 1... Nf6 {[%clk 0:02:58.5]} 2. c4 {[%clk 0:03:01.1]} 2...
e6 {[%clk 0:02:59.3]} 3. Nf3 {[%clk 0:03:01.6]} 3... Bb4+ {[%clk 0:03:00.1]} 4.
Bd2 {[%clk 0:03:00.7]} 4... a5 {[%clk 0:03:00.5]} 5. Bxb4 {[%clk 0:03:00.6]}
5... axb4 {[%clk 0:03:00.9]} 6. g3 {[%clk 0:03:02.2]} 6... O-O {[%clk 0:02:54]}
7. Bg2 {[%clk 0:03:02.9]} 7... d5 {[%clk 0:02:55.6]} 8. cxd5 {[%clk 0:02:59.3]}
8... exd5 {[%clk 0:02:47]} 9. O-O {[%clk 0:02:59.9]} 9... c6 {[%clk 0:02:47.2]}
10. Qd2 {[%clk 0:02:57]} 10... Qd6 {[%clk 0:02:46.5]} 11. Ne5 {[%clk 0:02:56.3]}
11... Nbd7 {[%clk 0:02:27.3]} 12. Nd3 {[%clk 0:02:55.2]} 12... b3 {[%clk
0:02:20.8]} 13. a3 {[%clk 0:02:50.8]} 13... c5 {[%clk 0:02:01.9]} 14. dxc5
{[%clk 0:02:47.8]} 14... Nxc5 {[%clk 0:02:02.2]} 15. Nxc5 {[%clk 0:02:49.3]}
15... Qxc5 {[%clk 0:02:03.4]} 16. Nc3 {[%clk 0:02:50.3]} 16... d4 {[%clk
0:02:02.9]} 17. Ne4 {[%clk 0:02:48.9]} 17... Nxe4 {[%clk 0:02:03.5]} 18. Bxe4
{[%clk 0:02:50.8]} 18... Be6 {[%clk 0:02:04.8]} 19. Rac1 {[%clk 0:02:50.7]}
19... Qb6 {[%clk 0:02:04.1]} 20. Rfd1 {[%clk 0:02:50.9]} 20... Rfd8 {[%clk
0:02:03.2]} 21. Qd3 {[%clk 0:02:49]} 21... h6 {[%clk 0:02:03.9]} 22. Qf3 {[%clk
0:02:48.7]} 22... Rab8 {[%clk 0:01:51]} 23. h4 {[%clk 0:02:47]} 23... Qa6 {[%clk
0:01:49.3]} 24. Bd3 {[%clk 0:02:41.4]} 24... b5 {[%clk 0:01:49.7]} 25. Rc5
{[%clk 0:02:41.4]} 25... Rdc8 {[%clk 0:01:40.9]} 26. Rdc1 {[%clk 0:02:41.7]}
26... Rxc5 {[%clk 0:01:31.4]} 27. Rxc5 {[%clk 0:02:43.6]} 27... Qa5 {[%clk
0:01:28.7]} 28. Qc6 {[%clk 0:02:34.3]} 28... Qe1+ {[%clk 0:01:23.7]} 29. Kg2
{[%clk 0:02:35]} 29... b4 {[%clk 0:01:23.1]} 30. a4 {[%clk 0:02:33.7]} 30... g6
{[%clk 0:01:19.1]} 31. a5 {[%clk 0:02:26.9]} 31... Rc8 {[%clk 0:01:20.2]} 32.
Qd6 {[%clk 0:02:08.4]} 32... Rxc5 {[%clk 0:01:20.5]} 33. Qxc5 {[%clk 0:02:10.3]}
33... h5 {[%clk 0:01:09.6]} 34. a6 {[%clk 0:02:07.5]} 34... Bh3+ {[%clk
0:01:09.4]} 35. Kf3 {[%clk 0:02:06.8]} 35... Bg4+ {[%clk 0:01:05.1]} 36. Kf4
{[%clk 0:02:07.6]} 36... Qd2+ {[%clk 0:01:05.2]} 37. Ke5 {[%clk 0:02:08.6]}
37... Qh6 {[%clk 0:00:50.9]} 38. a7 {[%clk 0:02:06.6]} 38... Qg7+ {[%clk
0:00:51.3]} 39. Ke4 {[%clk 0:02:00.5]} 39... f5+ {[%clk 0:00:43.2]} 40. Kf4
{[%clk 0:01:59.2]} 40... Qh6+ {[%clk 0:00:39.2]} 41. Ke5 {[%clk 0:01:59.6]}
41... Qg7+ {[%clk 0:00:40]} 42. Kd6 {[%clk 0:01:59.5]} 42... Qf8+ {[%clk
0:00:37.6]} 43. Kc6 {[%clk 0:02:00.1]} 43... Qa8+ {[%clk 0:00:33.7]} 44. Kb6
{[%clk 0:01:59.9]} 44... f4 {[%clk 0:00:21.2]} 45. Bc4+ {[%clk 0:02:00]} 45...
Kh7 {[%clk 0:00:21.4]} 46. Bd5 {[%clk 0:02:00.8]} 46... Qd8+ {[%clk 0:00:19.4]}
47. Qc7+ {[%clk 0:02:01.3]} 47... Qxc7+ {[%clk 0:00:07.8]} 48. Kxc7 {[%clk
0:02:03.2]} 48... fxg3 {[%clk 0:00:08.9]} 49. a8=Q {[%clk 0:02:02]} 49... gxf2
{[%clk 0:00:09.2]} 50. Qg8+ {[%clk 0:02:03.5]} 1-0

[Event "*** Titled Tuesday 3|2 Blitz"]
[Site "Chess.com"]
[Date "2015.03.03"]
[Round "7"]
[White "jup1978"]
[Black "LADIESGET2KNOWME"]
[Result "1-0"]
[WhiteElo "2159"]
[BlackElo "2256"]
[TimeControl "180+2"]
[EndTime "12:27:23 PST"]
[Termination "jup1978 won by resignation"]

1. e4 {[%clk 0:03:00]} 1... e6 {[%clk 0:02:57.9]} 2. d4 {[%clk 0:03:00.4]} 2...
d5 {[%clk 0:02:59.8]} 3. Nd2 {[%clk 0:03:01.2]} 3... Nf6 {[%clk 0:03:01.3]} 4.
e5 {[%clk 0:02:54.9]} 4... Nfd7 {[%clk 0:03:02.6]} 5. Bd3 {[%clk 0:02:11.5]}
5... c5 {[%clk 0:03:04.5]} 6. c3 {[%clk 0:02:12.2]} 6... Nc6 {[%clk 0:03:05.7]}
7. Ne2 {[%clk 0:02:13.3]} 7... cxd4 {[%clk 0:03:06.6]} 8. cxd4 {[%clk
0:02:15.2]} 8... f6 {[%clk 0:03:08.1]} 9. exf6 {[%clk 0:02:16.5]} 9... Nxf6
{[%clk 0:03:10]} 10. Nf3 {[%clk 0:02:18]} 10... Bd6 {[%clk 0:03:11.9]} 11. O-O
{[%clk 0:02:19.4]} 11... O-O {[%clk 0:03:13.8]} 12. Bf4 {[%clk 0:02:20.8]} 12...
Nd7 {[%clk 0:03:14.4]} 13. Bxd6 {[%clk 0:02:20.9]} 13... Rxf3 {[%clk 0:02:54]}
14. gxf3 {[%clk 0:02:20.1]} 14... Nf6 {[%clk 0:02:54.3]} 15. Bg3 {[%clk
0:02:19.4]} 15... Nh5 {[%clk 0:02:54.1]} 16. Nf4 {[%clk 0:02:12.3]} 16... Nf6
{[%clk 0:02:53.8]} 17. Re1 {[%clk 0:02:04.8]} 17... Qe8 {[%clk 0:02:48.7]} 18.
Ng2 {[%clk 0:02:00]} 18... Qh5 {[%clk 0:02:45.2]} 19. Re3 {[%clk 0:01:56.4]}
19... Nxd4 {[%clk 0:02:42.3]} 20. Bxh7+ {[%clk 0:01:55.9]} 20... Nxh7 {[%clk
0:02:44.1]} 21. Qxd4 {[%clk 0:01:56.3]} 21... Ng5 {[%clk 0:02:46]} 22. Qe5
{[%clk 0:01:40.5]} 22... Nxf3+ {[%clk 0:02:43.3]} 23. Rxf3 {[%clk 0:01:39.2]}
23... Qxf3 {[%clk 0:02:45.2]} 24. Re1 {[%clk 0:01:36]} 24... Bd7 {[%clk
0:02:45.3]} 25. Nf4 {[%clk 0:01:10.5]} 25... Re8 {[%clk 0:02:36.8]} 26. Nh5
{[%clk 0:01:06.1]} 26... Qg4 {[%clk 0:02:28.7]} 27. Nf4 {[%clk 0:01:02.1]} 27...
Bc6 {[%clk 0:02:24.3]} 28. h3 {[%clk 0:00:52.2]} 28... Qf3 {[%clk 0:02:24.1]}
29. Nxe6 {[%clk 0:00:51.3]} 29... Qf7 {[%clk 0:02:19]} 30. f4 {[%clk 0:00:31.7]}
30... g6 {[%clk 0:02:12.2]} 31. Kh2 {[%clk 0:00:29.5]} 31... Bd7 {[%clk
0:02:08.8]} 32. f5 {[%clk 0:00:27.5]} 32... gxf5 {[%clk 0:02:05.2]} 33. Rg1
{[%clk 0:00:25.8]} 33... Rxe6 {[%clk 0:02:02.5]} 34. Bf2+ {[%clk 0:00:22]} 34...
Kh7 {[%clk 0:01:53.2]} 35. Qf4 {[%clk 0:00:20.6]} 35... Re4 {[%clk 0:01:24.6]}
36. Qg5 {[%clk 0:00:20.2]} 36... f4 {[%clk 0:01:20.6]} 37. Qh4+ {[%clk
0:00:19.5]} 1-0

[Event "*** Titled Tuesday 3|2 Blitz"]
[Site "Chess.com"]
[Date "2015.03.03"]
[Round "7"]
[White "AndreyOstrovskiy"]
[Black "destroyer305"]
[Result "1-0"]
[WhiteElo "2353"]
[BlackElo "2193"]
[TimeControl "180+2"]
[EndTime "12:27:31 PST"]
[Termination "AndreyOstrovskiy won on time"]

1. e4 {[%clk 0:03:00]} 1... c5 {[%clk 0:02:59.1]} 2. Nf3 {[%clk 0:03:00.2]} 2...
g6 {[%clk 0:03:00]} 3. d4 {[%clk 0:03:00.6]} 3... cxd4 {[%clk 0:03:01.4]} 4.
Qxd4 {[%clk 0:03:02.5]} 4... Nf6 {[%clk 0:03:02]} 5. Nc3 {[%clk 0:03:02.9]} 5...
Nc6 {[%clk 0:03:03.2]} 6. Qa4 {[%clk 0:03:04.5]} 6... d6 {[%clk 0:02:59.5]} 7.
e5 {[%clk 0:03:05.4]} 7... dxe5 {[%clk 0:03:01.1]} 8. Nxe5 {[%clk 0:03:06.5]}
8... Qc7 {[%clk 0:03:01.8]} 9. Nxc6 {[%clk 0:03:04.9]} 9... bxc6 {[%clk
0:03:02.7]} 10. Bf4 {[%clk 0:03:04.5]} 10... Qb6 {[%clk 0:03:01.1]} 11. Be3
{[%clk 0:02:55.7]} 11... Qc7 {[%clk 0:02:37.1]} 12. Be2 {[%clk 0:02:19.8]} 12...
Bg7 {[%clk 0:02:34.1]} 13. Bf3 {[%clk 0:02:20.8]} 13... Bd7 {[%clk 0:02:18.1]}
14. O-O {[%clk 0:02:20.8]} 14... O-O {[%clk 0:02:18.5]} 15. Bc5 {[%clk
0:02:20.7]} 15... Rfe8 {[%clk 0:02:12.2]} 16. Rfd1 {[%clk 0:02:16.8]} 16... Nd5
{[%clk 0:02:10.7]} 17. Bd4 {[%clk 0:01:29.3]} 17... e5 {[%clk 0:01:46]} 18. Bc5
{[%clk 0:01:30.3]} 18... Nxc3 {[%clk 0:01:33.3]} 19. bxc3 {[%clk 0:01:31.2]}
19... Rec8 {[%clk 0:00:24.5]} 20. h4 {[%clk 0:01:24.1]} 20... Bf5 {[%clk
0:00:21.9]} 21. h5 {[%clk 0:01:22]} 21... e4 {[%clk 0:00:20.8]} 22. Bd6 {[%clk
0:01:13]} 22... Qb6 {[%clk 0:00:19]} 23. Rab1 {[%clk 0:01:12.3]} 23... Qd8
{[%clk 0:00:16.8]} 24. Bxe4 {[%clk 0:01:11.2]} 24... Qh4 {[%clk 0:00:17]} 25.
Bxc6 {[%clk 0:00:59.8]} 25... Qxa4 {[%clk 0:00:16.9]} 26. Bxa4 {[%clk
0:01:00.8]} 26... Rxc3 {[%clk 0:00:17.5]} 27. hxg6 {[%clk 0:01:01.1]} 27... hxg6
{[%clk 0:00:17.1]} 28. Bb4 {[%clk 0:00:50.2]} 28... Rc7 {[%clk 0:00:04.2]} 29.
Rd2 {[%clk 0:00:43.1]} 29... Rac8 {[%clk 0:00:04.3]} 30. Bd6 {[%clk 0:00:37.2]}
1-0

[Event "*** Titled Tuesday 3|2 Blitz"]
[Site "Chess.com"]
[Date "2015.03.03"]
[Round "7"]
[White "brauliocuarta"]
[Black "Aragon"]
[Result "1-0"]
[WhiteElo "2029"]
[BlackElo "1962"]
[TimeControl "180+2"]
[EndTime "12:27:55 PST"]
[Termination "brauliocuarta won by checkmate"]

1. d4 {[%clk 0:03:00]} 1... d5 {[%clk 0:02:56.5]} 2. c4 {[%clk 0:02:59.5]} 2...
e6 {[%clk 0:02:56.2]} 3. Nc3 {[%clk 0:02:53.9]} 3... c6 {[%clk 0:02:56.8]} 4.
Nf3 {[%clk 0:02:52.5]} 4... dxc4 {[%clk 0:02:56.3]} 5. a4 {[%clk 0:02:49.8]}
5... Bb4 {[%clk 0:02:54.3]} 6. e4 {[%clk 0:02:47.4]} 6... b5 {[%clk 0:02:40.4]}
7. Bd2 {[%clk 0:02:42.8]} 7... a5 {[%clk 0:02:17.6]} 8. axb5 {[%clk 0:01:28.9]}
8... Bxc3 {[%clk 0:02:16.4]} 9. bxc3 {[%clk 0:01:30.4]} 9... cxb5 {[%clk
0:02:15.7]} 10. Qb1 {[%clk 0:01:01.3]} 10... Ba6 {[%clk 0:01:42.6]} 11. Be2
{[%clk 0:00:55.1]} 11... Ne7 {[%clk 0:01:34.2]} 12. O-O {[%clk 0:00:51.9]} 12...
a4 {[%clk 0:01:29.5]} 13. e5 {[%clk 0:00:43.2]} 13... Nbc6 {[%clk 0:01:17.7]}
14. Ng5 {[%clk 0:00:38]} 14... Na5 {[%clk 0:01:05.3]} 15. Bh5 {[%clk 0:00:17.6]}
15... g6 {[%clk 0:01:00.2]} 16. Bf3 {[%clk 0:00:18.2]} 16... Rb8 {[%clk
0:00:34.1]} 17. Ne4 {[%clk 0:00:19]} 17... O-O {[%clk 0:00:18.9]} 18. Bh6 {[%clk
0:00:17.5]} 18... Nb3 {[%clk 0:00:12.4]} 19. Nf6+ {[%clk 0:00:16.8]} 19... Kh8
{[%clk 0:00:12.8]} 20. Qe4 {[%clk 0:00:15.3]} 20... Nf5 {[%clk 0:00:08.4]} 21.
Bxf8 {[%clk 0:00:14.7]} 21... Qxf8 {[%clk 0:00:08.5]} 22. Qg4 {[%clk 0:00:15.3]}
22... Qg7 {[%clk 0:00:09.6]} 23. Rab1 {[%clk 0:00:12.8]} 23... Bb7 {[%clk
0:00:10.4]} 24. Bxb7 {[%clk 0:00:10.5]} 24... Rxb7 {[%clk 0:00:11.6]} 25. Qf3
{[%clk 0:00:12]} 25... Rb8 {[%clk 0:00:09.5]} 26. g4 {[%clk 0:00:10.6]} 26...
Nh6 {[%clk 0:00:09.6]} 27. Qc6 {[%clk 0:00:11]} 27... Qf8 {[%clk 0:00:10.1]} 28.
Qc7 {[%clk 0:00:11.5]} 28... Ng8 {[%clk 0:00:10.9]} 29. Nd7 {[%clk 0:00:11]}
29... Qd8 {[%clk 0:00:11.2]} 30. Qxb8 {[%clk 0:00:12.3]} 30... Qxd7 {[%clk
0:00:12.6]} 31. Qf8 {[%clk 0:00:12.5]} 31... Qd5 {[%clk 0:00:12.6]} 32. f4
{[%clk 0:00:12.4]} 32... Qd7 {[%clk 0:00:13.2]} 33. f5 {[%clk 0:00:13.6]} 33...
Nd2 {[%clk 0:00:12.4]} 34. f6 {[%clk 0:00:14.3]} 34... Nxb1 {[%clk 0:00:12.6]}
35. Qg7# {[%clk 0:00:15]} 1-0

[Event "*** Titled Tuesday 3|2 Blitz"]
[Site "Chess.com"]
[Date "2015.03.03"]
[Round "7"]
[White "FabianEnglert"]
[Black "pedromartinez91"]
[Result "0-1"]
[WhiteElo "2239"]
[BlackElo "2170"]
[TimeControl "180+2"]
[EndTime "12:28:11 PST"]
[Termination "pedromartinez91 won by resignation"]

1. Nf3 {[%clk 0:03:00]} 1... d5 {[%clk 0:02:58.5]} 2. c4 {[%clk 0:03:00.3]} 2...
dxc4 {[%clk 0:02:58.7]} 3. e3 {[%clk 0:03:00.6]} 3... Nc6 {[%clk 0:02:58.2]} 4.
Bxc4 {[%clk 0:02:57.6]} 4... e5 {[%clk 0:02:50.7]} 5. Qb3 {[%clk 0:02:39.7]}
5... Qd7 {[%clk 0:02:49]} 6. Qc2 {[%clk 0:02:07.7]} 6... Bd6 {[%clk 0:02:47.4]}
7. a3 {[%clk 0:02:07.7]} 7... Nf6 {[%clk 0:02:47.8]} 8. O-O {[%clk 0:02:08.7]}
8... e4 {[%clk 0:02:48.1]} 9. Ng5 {[%clk 0:02:02.4]} 9... Qg4 {[%clk 0:02:23.3]}
10. Nxf7 {[%clk 0:01:55.5]} 10... Bxh2+ {[%clk 0:02:15.4]} 11. Kxh2 {[%clk
0:01:26.1]} 11... Qh4+ {[%clk 0:02:16.3]} 12. Kg1 {[%clk 0:01:27.4]} 12... Bf5
{[%clk 0:02:09.8]} 13. g3 {[%clk 0:01:14.3]} 13... Qh5 {[%clk 0:02:00.2]} 14.
Nxh8 {[%clk 0:01:00.2]} 14... Ne5 {[%clk 0:02:00.5]} 15. Bf7+ {[%clk 0:00:53.8]}
15... Nxf7 {[%clk 0:02:00.9]} 16. Qxc7 {[%clk 0:00:43.8]} 16... Ng5 {[%clk
0:01:48.9]} 17. Qe5+ {[%clk 0:00:39.1]} 17... Kf8 {[%clk 0:01:31.7]} 18. g4
{[%clk 0:00:19.9]} 18... Nf3+ {[%clk 0:01:09.6]} 19. Kg2 {[%clk 0:00:21.2]}
19... Nxg4 {[%clk 0:00:50.8]} 20. Qg3 {[%clk 0:00:19.2]} 20... Kg8 {[%clk
0:00:33.9]} 21. Rh1 {[%clk 0:00:20]} 21... Ngh2 {[%clk 0:00:30.2]} 22. Rxh2
{[%clk 0:00:17.9]} 22... Nxh2 {[%clk 0:00:30.5]} 23. Qxh2 {[%clk 0:00:19.6]}
23... Qf3+ {[%clk 0:00:31.5]} 24. Kg1 {[%clk 0:00:21]} 24... Qd1+ {[%clk
0:00:31]} 25. Kg2 {[%clk 0:00:22.4]} 25... Qxc1 {[%clk 0:00:26.8]} 26. Qf4
{[%clk 0:00:20.7]} 26... Rf8 {[%clk 0:00:24.3]} 27. Kh2 {[%clk 0:00:18.7]} 27...
Qxb2 {[%clk 0:00:23.4]} 28. Nc3 {[%clk 0:00:17.5]} 28... Qxa1 {[%clk 0:00:23.1]}
29. Nxe4 {[%clk 0:00:13.4]} 29... Bxe4 {[%clk 0:00:22.5]} 30. Qxe4 {[%clk
0:00:14.8]} 30... Rxf2+ {[%clk 0:00:21.3]} 31. Kh3 {[%clk 0:00:14.9]} 31... Qf1+
{[%clk 0:00:17.3]} 32. Kh4 {[%clk 0:00:14.1]} 32... Rh2+ {[%clk 0:00:14.1]} 33.
Kg3 {[%clk 0:00:14.9]} 33... Qf2+ {[%clk 0:00:14.2]} 34. Kg4 {[%clk 0:00:16]}
34... Qg2+ {[%clk 0:00:14.6]} 35. Kf5 {[%clk 0:00:17]} 35... Rh5+ {[%clk
0:00:14.6]} 0-1

[Event "*** Titled Tuesday 3|2 Blitz"]
[Site "Chess.com"]
[Date "2015.03.03"]
[Round "7"]
[White "chesstatour"]
[Black "Hafez_Bakr"]
[Result "1-0"]
[WhiteElo "1891"]
[BlackElo "1807"]
[TimeControl "180+2"]
[EndTime "12:28:11 PST"]
[Termination "chesstatour won by resignation"]

1. d4 {[%clk 0:03:00]} 1... Nf6 {[%clk 0:02:44.2]} 2. c4 {[%clk 0:02:58.1]} 2...
e6 {[%clk 0:02:44.4]} 3. Nc3 {[%clk 0:02:54.7]} 3... Bb4 {[%clk 0:02:44.6]} 4.
Bg5 {[%clk 0:02:53.5]} 4... O-O {[%clk 0:02:44.5]} 5. Nf3 {[%clk 0:02:53.7]}
5... h6 {[%clk 0:02:44.5]} 6. Bh4 {[%clk 0:02:54.1]} 6... d5 {[%clk 0:02:44.4]}
7. e3 {[%clk 0:02:54.3]} 7... Nbd7 {[%clk 0:02:41.4]} 8. Bd3 {[%clk 0:02:45.4]}
8... b6 {[%clk 0:02:38]} 9. O-O {[%clk 0:02:43.6]} 9... Be7 {[%clk 0:02:37.4]}
10. Rc1 {[%clk 0:02:31.1]} 10... Bb7 {[%clk 0:02:18.3]} 11. cxd5 {[%clk
0:02:06.7]} 11... Nxd5 {[%clk 0:02:16.3]} 12. Nxd5 {[%clk 0:01:48]} 12... exd5
{[%clk 0:02:12.4]} 13. Bxe7 {[%clk 0:01:47]} 13... Qxe7 {[%clk 0:02:12.8]} 14.
Rxc7 {[%clk 0:01:47.6]} 14... Bc8 {[%clk 0:02:05.1]} 15. Ne5 {[%clk 0:01:17.6]}
15... Qd6 {[%clk 0:02:06]} 16. Rc6 {[%clk 0:01:17]} 16... Qe7 {[%clk 0:01:53.7]}
17. Nxd7 {[%clk 0:01:11.6]} 17... Bxd7 {[%clk 0:01:48.2]} 18. Rc7 {[%clk
0:01:11.7]} 18... Qd6 {[%clk 0:01:49.2]} 19. Rc3 {[%clk 0:01:07.3]} 19... Rfc8
{[%clk 0:01:47.4]} 20. Qb3 {[%clk 0:01:08]} 20... Rxc3 {[%clk 0:01:47.8]} 21.
bxc3 {[%clk 0:01:07.2]} 21... Rc8 {[%clk 0:01:39.3]} 22. c4 {[%clk 0:01:06.9]}
22... dxc4 {[%clk 0:01:32.7]} 23. Bxc4 {[%clk 0:01:08.8]} 23... Be8 {[%clk
0:01:31.8]} 24. Rd1 {[%clk 0:00:46]} 24... Qc7 {[%clk 0:01:31.4]} 25. Be2 {[%clk
0:00:41.2]} 25... Qc2 {[%clk 0:01:23.2]} 26. Bf3 {[%clk 0:00:33.1]} 26... Rc3
{[%clk 0:01:14.1]} 27. Qd5 {[%clk 0:00:20.4]} 27... Bc6 {[%clk 0:01:09.8]} 28.
Qd8+ {[%clk 0:00:12.2]} 28... Kh7 {[%clk 0:01:10.1]} 29. d5 {[%clk 0:00:11.8]}
29... g6 {[%clk 0:00:57.6]} 30. dxc6 {[%clk 0:00:09.2]} 30... Rxc6 {[%clk
0:00:55]} 31. Bxc6 {[%clk 0:00:08.7]} 31... Qxc6 {[%clk 0:00:55]} 32. Qd4 {[%clk
0:00:07.8]} 32... Qe6 {[%clk 0:00:52.2]} 33. g3 {[%clk 0:00:08.9]} 33... Qxa2
{[%clk 0:00:52]} 34. Qf6 {[%clk 0:00:08.3]} 34... a5 {[%clk 0:00:51.3]} 35. Rd8
{[%clk 0:00:07.6]} 35... Qb1+ {[%clk 0:00:49.8]} 36. Kg2 {[%clk 0:00:07.8]}
36... Qe4+ {[%clk 0:00:49]} 37. Kh3 {[%clk 0:00:05.9]} 37... Qf5+ {[%clk
0:00:48.1]} 38. Qxf5 {[%clk 0:00:07]} 38... gxf5 {[%clk 0:00:49]} 39. Rb8 {[%clk
0:00:08.6]} 39... a4 {[%clk 0:00:48.4]} 40. Rxb6 {[%clk 0:00:09.7]} 40... Kg7
{[%clk 0:00:46.4]} 41. Ra6 {[%clk 0:00:11.2]} 41... f6 {[%clk 0:00:46.7]} 42.
Rxa4 {[%clk 0:00:12.5]} 42... Kg6 {[%clk 0:00:48.6]} 43. Kg2 {[%clk 0:00:12.2]}
43... Kg5 {[%clk 0:00:48.9]} 44. Kf3 {[%clk 0:00:13.7]} 44... h5 {[%clk
0:00:49.9]} 45. h4+ {[%clk 0:00:14.7]} 45... Kg6 {[%clk 0:00:50.6]} 46. Kf4
{[%clk 0:00:16.2]} 1-0

[Event "*** Titled Tuesday 3|2 Blitz"]
[Site "Chess.com"]
[Date "2015.03.03"]
[Round "7"]
[White "ChessPsych0"]
[Black "jcibarra"]
[Result "0-1"]
[WhiteElo "2090"]
[BlackElo "2526"]
[TimeControl "180+2"]
[EndTime "12:28:35 PST"]
[Termination "jcibarra won by checkmate"]

1. d4 {[%clk 0:02:57.3]} 1... Nf6 {[%clk 0:02:58.8]} 2. c4 {[%clk 0:02:58.2]}
2... d6 {[%clk 0:03:00.2]} 3. Nf3 {[%clk 0:02:58.6]} 3... g6 {[%clk 0:03:01.3]}
4. Nc3 {[%clk 0:02:59.8]} 4... Bf5 {[%clk 0:03:02.6]} 5. g3 {[%clk 0:02:57.6]}
5... Ne4 {[%clk 0:03:03.7]} 6. Nxe4 {[%clk 0:02:36.5]} 6... Bxe4 {[%clk
0:03:05.6]} 7. Bg2 {[%clk 0:02:37.8]} 7... Bg7 {[%clk 0:03:07.2]} 8. O-O {[%clk
0:02:38.7]} 8... O-O {[%clk 0:03:08.7]} 9. Be3 {[%clk 0:02:32.4]} 9... c5 {[%clk
0:03:09.5]} 10. Qd2 {[%clk 0:02:33.3]} 10... Qb6 {[%clk 0:03:09.5]} 11. Rfd1
{[%clk 0:02:30.4]} 11... Nc6 {[%clk 0:03:09.7]} 12. d5 {[%clk 0:02:24.6]} 12...
Na5 {[%clk 0:03:08.3]} 13. b3 {[%clk 0:02:16.4]} 13... Bxa1 {[%clk 0:02:56]} 14.
Rxa1 {[%clk 0:02:18.3]} 14... Qa6 {[%clk 0:02:55.9]} 15. Qc3 {[%clk 0:02:15.7]}
15... f6 {[%clk 0:02:44.8]} 16. Bh6 {[%clk 0:01:38.7]} 16... b5 {[%clk
0:02:41.1]} 17. Ng5 {[%clk 0:01:35.6]} 17... Bxg2 {[%clk 0:02:33.5]} 18. Kxg2
{[%clk 0:01:19.8]} 18... bxc4 {[%clk 0:02:34.4]} 19. Bxf8 {[%clk 0:01:19.6]}
19... Rxf8 {[%clk 0:02:32.7]} 20. Ne6 {[%clk 0:01:20.2]} 20... Rb8 {[%clk
0:02:30.9]} 21. Qd2 {[%clk 0:01:15.8]} 21... Kh8 {[%clk 0:02:11.3]} 22. Qh6
{[%clk 0:01:09.9]} 22... Rg8 {[%clk 0:02:12]} 23. Nf8 {[%clk 0:01:01.1]} 23...
Rg7 {[%clk 0:02:07.6]} 24. Ne6 {[%clk 0:00:48]} 24... Rf7 {[%clk 0:02:06.9]} 25.
Nd8 {[%clk 0:00:46.2]} 25... Rg7 {[%clk 0:02:05.1]} 26. Ne6 {[%clk 0:00:45.2]}
26... Rf7 {[%clk 0:02:00.1]} 27. Nd8 {[%clk 0:00:45]} 27... Kg8 {[%clk
0:01:58.9]} 28. Nxf7 {[%clk 0:00:45.8]} 28... Kxf7 {[%clk 0:02:00.8]} 29. Qxh7+
{[%clk 0:00:46.2]} 29... Kf8 {[%clk 0:02:01.2]} 30. Qh8+ {[%clk 0:00:46.1]}
30... Kf7 {[%clk 0:02:01.9]} 31. Qh7+ {[%clk 0:00:47.5]} 31... Kf8 {[%clk
0:02:03.2]} 32. Qxg6 {[%clk 0:00:46.3]} 32... Nxb3 {[%clk 0:02:01.6]} 33. Re1
{[%clk 0:00:37.2]} 33... Qxa2 {[%clk 0:02:02.2]} 34. h4 {[%clk 0:00:32.4]} 34...
Qd2 {[%clk 0:02:03.2]} 35. h5 {[%clk 0:00:31.7]} 35... Qxd5+ {[%clk 0:02:03.7]}
36. f3 {[%clk 0:00:32.9]} 36... Qf7 {[%clk 0:02:04.2]} 37. Qf5 {[%clk 0:00:21]}
37... e6 {[%clk 0:01:53.9]} 38. Qf4 {[%clk 0:00:14.1]} 38... e5 {[%clk
0:01:50.2]} 39. Qf5 {[%clk 0:00:15.2]} 39... Nd4 {[%clk 0:01:51.5]} 40. Qc8+
{[%clk 0:00:05.7]} 40... Kg7 {[%clk 0:01:53]} 41. Rh1 {[%clk 0:00:06.6]} 41...
c3 {[%clk 0:01:50.6]} 42. h6+ {[%clk 0:00:07.9]} 42... Kh7 {[%clk 0:01:52.1]}
43. e3 {[%clk 0:00:02.9]} 43... Qa2+ {[%clk 0:01:43.6]} 44. Kh3 {[%clk
0:00:02.3]} 44... Qe6+ {[%clk 0:01:32.8]} 45. Qxe6 {[%clk 0:00:03.4]} 45... Nxe6
{[%clk 0:01:34.7]} 46. Rc1 {[%clk 0:00:04.9]} 46... e4 {[%clk 0:01:27.3]} 47. f4
{[%clk 0:00:03.6]} 47... d5 {[%clk 0:01:25.9]} 48. Rxc3 {[%clk 0:00:04.7]} 48...
d4 {[%clk 0:01:27.4]} 49. exd4 {[%clk 0:00:04.3]} 49... cxd4 {[%clk 0:01:29.3]}
50. Rc6 {[%clk 0:00:05.3]} 50... d3 {[%clk 0:01:19.3]} 51. Rxe6 {[%clk
0:00:03.3]} 51... d2 {[%clk 0:01:20.2]} 52. Rxe4 {[%clk 0:00:02.6]} 52... d1=Q
{[%clk 0:01:21.2]} 53. Re7+ {[%clk 0:00:03.1]} 53... Kxh6 {[%clk 0:01:22.7]} 54.
Rxa7 {[%clk 0:00:04.3]} 54... Qh1+ {[%clk 0:01:23]} 55. Kg4 {[%clk 0:00:05.7]}
55... Qh5# {[%clk 0:01:24.9]} 0-1